Cogmind - Beta 15 @@@ ROGUE MODE // 2025.08.27 @ 12:49:11 Player: TapeIsSticky Result: Heading to fleet! Performance ------------- Evolutions (9) 4500 Regions Visited (25) 5000 Robots Destroyed (224) 1120 Value Destroyed (10575) 10575 Prototype IDs (40) 800 Alien Tech Used (5) 1000 Bonus (9909) 9909 TOTAL SCORE: 32904 Bonus ------- High Alert Combat Kills 258 Follower Combat Kills 2124 Network Hubs Disabled 200 Registered with UFD 300 Met Zhirov 300 Met Warlord at Base 500 MAIN.C Attacked Warlord 500 Built Enhanced Grunts 300 A7 Reached Mainframe 300 Met R17 at Cetus 500 Used Core Reset Matrix 3000 Met R17 at Research 2000 Win 3000 Friendly Fire -3373 Cogmind --------- Core Integrity 1532/1600 Matter 249/300 Energy 98/100 System Corruption 9% Temperature Cool (0) Movement Core (50) Location To Fleet Rendezvous Parts ------- > --- POWER (4) -------- (None) > --- PROPULSION (6) --- (None) > --- UTILITY (11) ----- (None) > --- WEAPON (4) ------- (None) > --- INVENTORY (5) ---- Layered Heavy Armor Plating Potential Cannon Peak State ------------ > --- POWER ------------ Quantum Reactor Quantum Reactor Vortex Chain Reactor > --- PROPULSION ------- Improved Heavy Treads Advanced Heavy Siege Treads Advanced Heavy Siege Treads > --- UTILITY ---------- Advanced Coolant Injector Huge Storage Unit Advanced Sensor Array Experimental Signal Interpreter Long-range Terrain Scanner Surveybot 24 Chip Advanced Targeting Computer Advanced Transmission Jammer Layered Heavy Armor Plating Advanced Force Field > --- WEAPON ----------- Potential Cannon Enhanced Hardcell Cannon Compact Linear Accelerator > --- INVENTORY -------- Quantum Reactor Armored Heavy Treads Centrium Heavy Treads Experimental Cooling System Advanced Coolant Injector Experimental Energy Well Improved Matter Compressor Advanced Weapon Cycler Layered Heavy Armor Plating Layered Heavy Armor Plating Advanced Point Defense System Advanced Point Defense System Hacking Suite High-powered Tractor Beam Subatomic Replicator Warp Gun Vortex Cannon Vortex Cannon KE Penetrator Long-range Missile Launcher Portable AFG [Rating: 211] Favorites ----------- Power Quantum Reactor Engine Light Ion Engine Power Core Neutrino Core Reactor Quantum Reactor Propulsion Light Treads Treads Light Treads Wheel Overtuned Huge Scrapsphere Utility Huge Storage Unit Device Scrap Suit Storage Huge Storage Unit Processor Advanced Targeting Computer Hackware Improved Hacking Suite Protection Centrium Medium Armor Plating Weapon Advanced KE Penetrator Energy Gun Overtuned Quantum Rifle Energy Cannon Cooled Plasma Cannon Ballistic Gun Advanced KE Penetrator Ballistic Cannon Antimatter Cannon Launcher Rocket Launcher Special Weapon CPS Tube Build | -11 -10 -10 -9 -9 -6 -6 -6 -6 -6 -5 -5 -5 -5 -4 -4 -4 -4 -4 -3 -3 -3 -3 -2 -2 -1 ------- Run | Yrd Mat Sub Rec Scr Fac Ext Cet Arc Hub Fac Upp Upp Zhi Pro Fac Upp Upp War Pro Res Qua Sec Res Tes Acc Slots Evolved 18 | . . . . . 8 . . . . 2 . . . . 2 . . . . 2 . . 2 . 2 Power 3 | . . . . . 1 . . . . . . . . . . . . . . . . . 1 . 1 Propulsion 4 | . . . . . 2 . . . . . . . . . 1 . . . . 1 . . . . . Utility 9 | . . . . . 4 . . . . 2 . . . . 1 . . . . 1 . . 1 . . Weapon 2 | . . . . . 1 . . . . . . . . . . . . . . . . . . . 1 Parts Attached 197 | 6 10 18 7 10 12 23 15 1 3 9 3 5 3 4 11 6 . 4 1 11 10 2 12 5 6 Power 19 | 1 1 1 . 1 2 4 1 . . . . 1 1 . . 1 . . . . 1 . 2 1 1 Engine 5 | 1 1 1 . 1 1 . . . . . . . . . . . . . . . . . . . . Core 3 | . . . . . 1 2 . . . . . . . . . . . . . . . . . . . Reactor 11 | . . . . . . 2 1 . . . . 1 1 . . 1 . . . . 1 . 2 1 1 Propulsion 35 | 2 1 2 2 2 4 8 3 . . . . . . 1 4 . . 1 . 1 . . 4 . . Treads 31 | 2 1 1 2 2 2 8 3 . . . . . . 1 3 . . 1 . 1 . . 4 . . Leg . | . . . . . . . . . . . . . . . . . . . . . . . . . . Wheel 4 | . . 1 . . 2 . . . . . . . . . 1 . . . . . . . . . . Hover . | . . . . . . . . . . . . . . . . . . . . . . . . . . Flight . | . . . . . . . . . . . . . . . . . . . . . . . . . . Utility 81 | 1 3 6 3 2 3 9 5 1 3 5 3 3 2 3 5 2 . 2 1 6 5 1 4 . 3 Device 39 | . . 2 . 2 1 5 4 1 . 3 1 1 . 1 4 1 . 2 . 4 4 . 2 . 1 Storage 6 | 1 2 1 . . . . . . . . . . 1 . . . . . . 1 . . . . . Processor 13 | . . . . . 1 1 . . . 1 1 2 . 1 1 . . . 1 1 1 1 1 . . Hackware 3 | . . . . . . . . . 3 . . . . . . . . . . . . . . . . Protection 20 | . 1 3 3 . 1 3 1 . . 1 1 . 1 1 . 1 . . . . . . 1 . 2 Artifact . | . . . . . . . . . . . . . . . . . . . . . . . . . . Weapon 62 | 2 5 9 2 5 3 2 6 . . 4 . 1 . . 2 3 . 1 . 4 4 1 2 4 2 Energy Gun 6 | . . 1 . . . . 2 . . . . . . . . . . . . 1 1 . . 1 . Energy Cannon 12 | . . 1 . . 2 . 2 . . . . . . . . . . 1 . 1 . 1 . 2 2 Ballistic Gun 31 | 2 3 7 2 2 1 1 1 . . 2 . 1 . . 2 3 . . . 1 3 . . . . Ballistic Cannon 7 | . 1 . . . . 1 . . . 1 . . . . . . . . . 1 . . 2 1 . Launcher 2 | . 1 . . . . . . . . 1 . . . . . . . . . . . . . . . Special Weapon 4 | . . . . 3 . . 1 . . . . . . . . . . . . . . . . . . Impact Weapon . | . . . . . . . . . . . . . . . . . . . . . . . . . . Slashing Weapon . | . . . . . . . . . . . . . . . . . . . . . . . . . . Piercing Weapon . | . . . . . . . . . . . . . . . . . . . . . . . . . . Special Melee Weapon . | . . . . . . . . . . . . . . . . . . . . . . . . . . Unidentified Prototypes 27 | . . . . 1 1 1 4 1 . 1 1 . 3 . . . . 3 . 3 1 1 3 3 . Corrupted Parts 2 | . . . . . . . . . . . 1 . . 1 . . . . . . . . . . . System Corruption 11 | . . . . . . . . . . . 3 . . 8 . . . . . . . . . . . Parts Lost 24 | . 1 5 1 . . 1 1 . 1 1 . 1 . 1 7 . . . . . . . 2 1 1 Power 3 | . . 1 . . . . 1 . . . . . . . 1 . . . . . . . . . . Propulsion 4 | . 1 1 1 . . . . . . . . . . . 1 . . . . . . . . . . Utility 11 | . . 2 . . . 1 . . 1 . . 1 . 1 3 . . . . . . . 1 . 1 Weapon 6 | . . 1 . . . . . . . 1 . . . . 2 . . . . . . . 1 1 . Highest Loss Streak 5 | . 1 4 1 . . 1 1 . 1 1 . 1 . 1 5 . . . . . . . 2 1 1 To Critical Strikes . | . . . . . . . . . . . . . . . . . . . . . . . . . . Average Backups 18 | 1 13 19 21 14 23 22 20 21 21 21 21 20 20 20 21 18 20 21 22 21 21 21 21 20 18 Power 1 | . 1 2 3 . 1 2 2 2 2 2 2 1 1 1 1 . . 1 2 2 1 1 1 2 . Propulsion 3 | . 1 2 4 4 4 4 4 3 3 3 3 3 3 3 3 3 3 2 2 1 2 2 2 2 1 Utility 6 | . 7 6 4 3 4 4 5 9 9 7 8 8 8 8 9 8 8 9 9 8 9 10 9 9 9 Weapon 6 | . 3 8 9 6 12 9 8 7 7 7 6 6 6 6 6 5 6 7 8 8 6 6 6 5 5 Tool/Special . | . . . . . . . . . . . . . . . . . . . . . . . . . . Unused Backups 48 | . . 1 2 11 . 4 9 . . 3 . 2 1 . 2 . . 2 . 6 . . . 1 4 Power 8 | . . . . 3 . 1 2 . . . . . . . . . . . . 2 . . . . . Propulsion 7 | . . . . 4 . . 1 . . 1 . . . . . . . . . . . . . . 1 Utility 17 | . . . 1 4 . . 2 . . . . 1 1 . 2 . . 1 . 1 . . . 1 3 Weapon 15 | . . 1 1 . . 3 4 . . 2 . 1 . . . . . . . 3 . . . . . Tool/Special 1 | . . . . . . . . . . . . . . . . . . 1 . . . . . . . Average Slot Usage (%) 80 | . 99 95 96 60 81 85 81 80 79 84 82 79 61 81 81 76 78 77 78 79 79 80 78 81 74 Engine 4 | . 14 11 14 5 7 . . . . . . . . . . . . . . . . . . . . Reactor 4 | . . . . . . . 12 13 12 10 11 10 11 11 9 9 10 10 10 9 8 9 8 8 12 Treads 17 | . 27 21 18 28 13 13 10 6 6 5 5 5 5 5 8 5 5 5 5 9 9 9 8 13 12 Wheel 3 | . . 6 7 . 6 6 6 6 6 5 5 5 5 5 5 5 5 5 5 4 4 4 3 . . Device 9 | . . 4 . 2 4 12 13 13 8 14 17 16 11 11 17 15 15 14 15 18 21 19 23 25 20 Storage 9 | . 14 14 14 11 6 6 6 6 6 5 5 5 5 5 5 5 5 5 5 4 4 4 4 4 4 Processor 4 | . . . . . 4 5 6 6 2 2 5 9 11 7 10 10 10 10 13 14 10 14 13 13 9 Protection 7 | . 13 7 14 6 12 6 6 6 2 7 10 5 7 14 6 8 10 10 6 4 4 4 2 4 5 Energy Cannon 2 | . . 4 13 . 5 5 11 13 12 . . . . . . . . . . . . . 2 . 4 Ballistic Gun 11 | . 23 20 13 5 13 12 3 6 6 15 11 11 . 11 10 14 15 15 15 9 6 9 2 . . Ballistic Cannon 1 | . 4 . . . . . . . . . 5 5 . 5 4 . . . . . . . 5 10 6 Peak Build Rating 211 | 6 12 16 18 25 67 82 109 109 109 133 129 124 120 125 131 122 124 128 125 157 163 159 187 195 211 Average Rating 67 | 4 9 13 16 12 60 74 93 108 106 126 128 116 95 123 123 120 123 124 124 155 157 158 175 185 207 On Entrance 97 | . 6 11 15 12 25 67 81 107 109 97 126 124 111 120 122 88 122 124 124 125 157 158 159 166 180 Naked Turns 1 | . . . . . . . . . . . . . . . . . . . . . . . . . 1 Heaviest Build 264 | 11 96 104 104 105 132 135 146 146 146 148 157 147 151 158 158 153 153 156 153 158 174 146 194 194 264 Greatest Support 235 | 40 40 40 43 43 28 40 40 80 80 80 80 20 20 80 98 20 20 70 20 20 150 20 235 235 235 Greatest Overweight (x) 10 | . 2 10 10 2 6 6 7 7 7 7 7 7 7 7 7 7 7 7 7 7 8 7 9 1 1 Average Overweight (x) 4 | . 1 6 6 1 5 5 6 6 6 4 3 7 6 6 6 7 7 6 7 7 3 7 6 . . Largest Inventory Capacity 25 | 8 25 25 25 25 25 25 25 25 25 25 25 25 25 25 25 25 25 25 25 25 25 25 25 25 25 Average Capacity 23 | 7 20 25 25 21 25 25 25 25 25 25 25 25 25 25 25 25 25 25 25 25 25 25 25 25 24 Most Carried 25 | 2 20 25 25 25 25 25 25 25 25 25 25 25 25 25 25 23 24 25 25 25 25 25 25 25 25 Average Carried 21 | 1 14 22 24 16 24 23 22 24 24 24 24 24 24 24 24 21 23 24 25 24 24 24 24 23 23 Final Capacity 25 | 8 25 25 25 25 25 25 25 25 25 25 25 25 25 25 25 25 25 25 25 25 25 25 25 25 5 Final Carried 25 | 2 19 25 24 23 25 25 22 25 24 25 25 24 25 25 25 22 24 25 25 25 24 25 25 24 4 Class Distribution -------------------- 50% | Mutant 26% | Scavenger-Tank 7% | Commander-Scrapper 6% | Scavenger-Scrapper 3% | Alien-Skirmisher Dominant Class ---------------- Mutant | -10/Materials Mutant | -10/Subcaves Mutant | -9/Recycling Mutant | -9/Scraptown Scavenger-Tank | -6/Factory Commander-Scrapper | -6/Extension Commander-Scrapper | -6/Cetus Commander-Scrapper | -6/Archives Scavenger-Scrapper | -6/Hub_04(d) Scavenger-Tank | -5/Factory Scavenger-Tank | -5/Upper Caves Scavenger-Tank | -5/Upper Caves Scavenger-Mutant | -5/Zhirov Scavenger-Scrapper | -4/Proximity Caves Scavenger-Tank | -4/Factory Scavenger-Tank | -4/Upper Caves Scavenger-Tank | -4/Upper Caves Scavenger-Tank | -4/Warlord Scavenger-Tank | -3/Proximity Caves Scavenger-Tank | -3/Research Scavenger-Scrapper | -3/Quarantine Scavenger-Scrapper | -3/Section 7 Alien-Skirmisher | -2/Research Alien-Skirmisher | -2/Testing Generator-Skirmisher | -1/Access Resources | -11 -10 -10 -9 -9 -6 -6 -6 -6 -6 -5 -5 -5 -5 -4 -4 -4 -4 -4 -3 -3 -3 -3 -2 -2 -1 ----------- Run | Yrd Mat Sub Rec Scr Fac Ext Cet Arc Hub Fac Upp Upp Zhi Pro Fac Upp Upp War Pro Res Qua Sec Res Tes Acc Matter Collected 12104 | 292 760 966 132 1150 228 802 241 20 20 849 260 495 250 636 577 487 251 87 106 310 674 52 736 1203 520 Remotely 2433 | . . . . . . 10 . . . 330 76 206 . 172 130 . . . . 180 127 . 506 529 167 Salvage Created 11454 | 95 725 620 304 . 80 1590 159 252 . 685 416 745 . 628 883 356 284 . . . 1232 104 847 708 741 Parts 510 | 7 51 35 10 . 6 76 11 15 . 31 10 20 . 28 35 21 11 . . . 54 2 19 37 31 Haulers Intercepted 3 | . 2 . . . . . . . . . . . . . . . . . . . . 1 . . . Recyclers Shooed 7 | 1 3 . 1 . . . . . . . . . . . . . . . . . . . . . 2 Parts Field Recycled 34 | . . . . 34 . . . . . . . . . . . . . . . . . . . . . Retrieved Matter 414 | . . . . 414 . . . . . . . . . . . . . . . . . . . . . Parts Self-Destructed 120 | . . 25 . . . . . . . . 17 23 . 28 . 15 10 . 2 . . . . . . Prevented 8 | . . . . . . . . . . . . . . . . 2 . . 6 . . . . . . Kills | -11 -10 -10 -9 -9 -6 -6 -6 -6 -6 -5 -5 -5 -5 -4 -4 -4 -4 -4 -3 -3 -3 -3 -2 -2 -1 ------- Run | Yrd Mat Sub Rec Scr Fac Ext Cet Arc Hub Fac Upp Upp Zhi Pro Fac Upp Upp War Pro Res Qua Sec Res Tes Acc Combat Hostiles Destroyed 172 | . 15 19 3 . . 20 1 . . 12 4 11 . 11 16 6 7 . . . 16 . 11 13 7 Guns 94 | . 3 14 . . . 12 1 . . 11 2 6 . 8 9 4 7 . . . 16 . 1 . . Cannons 54 | . . 3 3 . . 6 . . . 1 2 5 . 3 3 . . . . . . . 10 13 5 AOE 20 | . 12 1 . . . . . . . . . . . . 4 2 . . . . . . . . 1 Classes Destroyed 22 | 2 6 3 . . 1 2 . . . 2 . . . 1 . 1 . . . . 1 . 2 1 . Worker 5 | . 2 . . . . . . . . . . . . . 1 . . . . . . . . 2 . Builder 4 | . 1 . . . . . . . . . . . . . . . . . . . . . . . 3 Tunneler 3 | 2 1 . . . . . . . . . . . . . . . . . . . . . . . . Hauler 3 | . 2 . . . . . . . . . . . . . . . . . . . . 1 . . . Recycler 12 | 1 3 . 2 . . 1 . . . . . . . . 1 . . . . . . . 1 . 3 Mechanic 1 | . . . . . . . . . . . . . . . . . . . . . . . 1 . . Operator 9 | . . . . . . 1 . 7 . . . . . . . . . . . . . . . 1 . Drone 2 | . . . . . . . . . . . . . . 2 . . . . . . . . . . . Turret 2 | . . 2 . . . . . . . . . . . . . . . . . . . . . . . Watcher 9 | . 3 . . . . 1 1 . . . . . . . 2 . . . . . 1 . 1 . . Swarmer 33 | . 9 4 . . . 1 . . . 1 . 5 . . 4 4 5 . . . . . . . . Grunt 67 | . 6 5 1 . . 6 1 . . 7 3 4 . 8 8 . 1 . . . 10 . 3 4 . Brawler 2 | . . . . . . . . . . 1 . 1 . . . . . . . . . . . . . Researcher 1 | . . . . . . . . . . . . . . . . . . . . . . . . 1 . Sentry 25 | . . 1 2 . . 11 . . . . 1 1 . 1 2 1 1 . . . . . 4 . . Specialist 2 | . . . . . . . . . . . . . . . . . . . . . . . 2 . . Hunter 4 | . . . . . . . . . . . . . . . . . . . . . 2 . . . 2 Programmer 25 | . . . . . . . . . . 3 . . . . 2 1 . . . . 3 . 2 9 5 Behemoth 2 | . . . . . . 2 . . . . . . . . . . . . . . . . . . . Subdweller 9 | . . 9 . . . . . . . . . . . . . . . . . . . . . . . Scrapoid 3 | . . . . . 1 . . . . . . 1 . . . . . . . . 1 . . . . Packrat 3 | . . . . . . . . . . . 2 . . . . 1 . . . . . . . . . Samaritan 2 | . . . . . . . . . . . . . . . . 2 . . . . . . . . . Best Kill Streak 9 | 3 6 4 2 . . 4 1 5 . 4 2 4 . 4 9 4 4 . . . 5 1 4 4 3 Combat Bots Only 7 | . 3 4 1 . . 3 1 . . 4 2 4 . 4 7 4 4 . . . 4 . 3 3 3 Max Kills in Single Turn 4 | 1 4 2 1 . 1 2 1 1 . 2 2 1 . 2 3 2 2 . . . 2 1 1 2 1 Gunslinging 1 | . . 1 . . . . . . . . . . . . 1 1 1 . . . 1 . . . . Exploded 3 | . 3 1 . . . . . . . . . . . . 3 2 . . . . . . . . 1 Melee . | . . . . . . . . . . . . . . . . . . . . . . . . . . Uniques/NPCs Destroyed 1 | . . . . . . . 1 . . . . . . . . . . . . . . . . . . A7 (-6/Cetus) Combat | -11 -10 -10 -9 -9 -6 -6 -6 -6 -6 -5 -5 -5 -5 -4 -4 -4 -4 -4 -3 -3 -3 -3 -2 -2 -1 -------- Run | Yrd Mat Sub Rec Scr Fac Ext Cet Arc Hub Fac Upp Upp Zhi Pro Fac Upp Upp War Pro Res Qua Sec Res Tes Acc Hostile Shots Fired 1222 | . 33 127 8 . . 263 24 . 14 56 26 45 . 41 112 22 26 8 . . 63 6 164 138 46 Missed 400 | . 15 47 3 . . 79 6 . 6 13 9 11 . 11 47 3 8 4 . . 13 3 64 48 10 Hits 822 | . 18 80 5 . . 184 18 . 8 43 17 34 . 30 65 19 18 4 . . 50 3 100 90 36 Melee 7 | . . . . . . . . . . 2 . . . . 5 . . . . . . . . . . Projectile 815 | . 18 80 5 . . 184 18 . 8 41 17 34 . 30 60 19 18 4 . . 50 3 100 90 36 AOE 9 | . . 4 . . . . . . . . . . . . 2 . . 3 . . . . . . . Critical Strikes 38 | . . 1 . . . 3 3 . . 4 2 1 . 1 . . . . . . 5 1 5 8 4 Actively Blocked 2 | . . . . . . . . . . . . . . . . . . . . . . . . 2 . Part Disruptions 4 | . . . . . . . . . . . . . . . . 1 . 1 . . . . . 2 . Damage Taken 13191 | . 342 1363 78 68 6 1490 412 . 120 965 318 611 . 602 1680 375 322 216 . 172 1237 68 1238 1028 480 Core 876 | . 10 167 15 . . 133 . . . 52 20 45 . 79 54 71 . . . 42 31 . 19 70 68 Absorbed by Shields 3299 | . . . 9 . 1 490 170 . 13 . . . . . . . . . . . 300 . 788 1079 449 Reduced by Siege Mode 147 | . . . . . . . . . . . . . . 23 17 . . . . . 19 . 29 47 12 Redirected to Shielding 201 | . . . . . . . . . . . . . . 90 . . . . . . . . 13 75 23 Regen/Repaired (Parts) 707 | . . . . . . 31 10 . . 98 . 9 . . . . . 466 27 . 36 . 30 . . Core Remaining (%) 81 | 100 . . . 23 . . . . 84 . . . . 80 . . . . 89 . . 94 . 86 95 Volleys Fired 726 | 8 50 80 10 5 7 60 33 24 27 45 9 29 . 40 58 13 11 1 1 19 48 23 41 52 32 Largest 3 | 2 2 2 2 1 1 3 3 3 3 3 3 3 . 3 3 3 3 1 3 3 3 3 3 3 2 Hottest 400 | 40 53 110 108 . 35 135 170 102 102 105 103 103 . 100 103 105 105 50 105 120 280 200 200 167 400 Shots Fired 1524 | 16 89 141 22 5 7 149 65 49 40 97 29 82 . 85 124 35 33 2 3 27 135 33 98 111 47 Gun 876 | 16 73 110 12 . 1 94 11 1 3 88 20 52 . 48 72 33 33 1 3 20 135 33 12 5 . Cannon 608 | . 4 16 10 . 6 52 52 48 37 9 9 30 . 37 51 . . 1 . 7 . . 86 106 47 Launcher 33 | . 12 15 . . . 3 . . . . . . . . 1 2 . . . . . . . . . Special 7 | . . . . 5 . . 2 . . . . . . . . . . . . . . . . . . Kinetic 1110 | 16 77 108 12 . 1 95 10 1 3 97 29 82 . 85 123 33 33 1 3 15 67 11 71 107 30 Thermal 345 | . . 18 10 . 6 51 53 48 37 . . . . . . . . . . 9 68 22 4 4 15 Explosive 33 | . 12 15 . . . 3 . . . . . . . . 1 2 . . . . . . . . . Electromagnetic 23 | . . . . . . . . . . . . . . . . . . . . . . . 23 . . Entropic 6 | . . . . . . . . . . . . . . . . . . 1 . 3 . . . . 2 Robot Hit Streak 16 | 8 5 16 8 5 . 9 9 7 2 8 6 11 . 11 14 10 8 . . 6 13 7 15 13 8 Robot Miss Streak 6 | 1 4 3 3 . . 5 3 3 3 5 3 2 . 5 2 5 2 . . 1 6 2 3 4 4 Penetration Max 2 | . . . . . . 2 1 . 1 1 1 1 . 1 1 . . . . . 2 . 1 1 . Secondary Targets 12 | . . 2 . . . 1 . . . 1 . . . . 1 1 3 . . . 3 . . . . Max Gunslinging Chain 1 | . . 1 . . . 1 . . . 1 . . . . 1 1 1 . . . 1 . . . . Shots Hit Robots 804 | 13 47 74 14 5 . 90 34 28 2 45 16 53 . 40 71 24 23 . . 6 81 8 62 47 21 Core Hits 384 | 5 37 34 8 . 1 57 12 15 1 17 8 18 . 21 32 14 8 . . . 36 3 26 20 11 Critical Kills 36 | . . 1 . . . 6 . . . 6 1 3 . 4 5 3 3 . . . 2 1 . . 1 Critical Parts Destroyed 31 | . 1 1 . . . 7 1 . . 6 2 2 . 1 4 2 . . . . 3 1 . . . Critical Strikes 89 | . 1 2 . . . 13 2 . . 12 3 7 . 5 10 5 3 . . . 5 2 11 6 2 Meltdown 5 | . . 1 . . . 3 . . . . . . . . . . . . . . . . . . 1 Destroy 65 | . 1 1 . . . 10 2 . . 12 3 6 . 5 9 5 3 . . . 5 2 1 . . Blast 19 | . . . . . . . . . . . . 1 . . 1 . . . . . . . 10 6 1 Melee Attacks . | . . . . . . . . . . . . . . . . . . . . . . . . . . Impact . | . . . . . . . . . . . . . . . . . . . . . . . . . . Slashing . | . . . . . . . . . . . . . . . . . . . . . . . . . . Piercing . | . . . . . . . . . . . . . . . . . . . . . . . . . . Sneak Attacks . | . . . . . . . . . . . . . . . . . . . . . . . . . . Combat Hostiles . | . . . . . . . . . . . . . . . . . . . . . . . . . . Follow-up Attacks . | . . . . . . . . . . . . . . . . . . . . . . . . . . Damage Inflicted 30410 | 142 1195 2048 393 . 56 2978 1223 971 97 1410 578 1584 . 1531 3251 828 582 . . 181 3086 247 2797 3166 2066 Guns 14669 | 142 425 1252 124 . . 1918 183 35 50 1360 347 1060 . 1068 1604 667 582 . . 108 3086 247 306 105 . Cannons 12572 | . 35 265 246 . 42 1060 1040 928 34 50 231 524 . 463 912 . . . . 73 . . 2345 2734 1590 Explosions 3039 | . 696 531 . . . . . . . . . . . . 735 161 . . . . . . 146 294 476 Melee . | . . . . . . . . . . . . . . . . . . . . . . . . . . Ramming 130 | . 39 . 23 . 14 . . 8 13 . . . . . . . . . . . . . . 33 . Kinetic 20209 | 142 460 1206 124 . . 1918 221 35 50 1410 578 1584 . 1531 2516 667 582 . . 181 1497 136 1809 2761 801 Thermal 7261 | . . 311 246 . 42 1060 1002 928 34 . . . . . 462 . . . . . 1589 111 281 78 1117 Explosive 1955 | . 696 531 . . . . . . . . . . . . 273 161 . . . . . . . 294 . Electromagnetic 707 | . . . . . . . . . . . . . . . . . . . . . . . 707 . . Impact . | . . . . . . . . . . . . . . . . . . . . . . . . . . Slashing . | . . . . . . . . . . . . . . . . . . . . . . . . . . Piercing . | . . . . . . . . . . . . . . . . . . . . . . . . . . Entropic 148 | . . . . . . . . . . . . . . . . . . . . . . . . . 148 Highest Corruption 25 | . 2 2 2 2 . 3 1 . . 4 7 7 7 15 1 2 2 2 1 . 2 2 4 25 9 Average Corruption 2 | . 2 2 2 2 . 2 1 . . 3 4 7 7 7 1 1 2 1 1 . 1 2 2 8 2 Corruption Purged 3 | . . . . . . 1 2 . . . . . . . . . . . . . . . . . . Corruption Blocked . | . . . . . . . . . . . . . . . . . . . . . . . . . . Effects 368 | . 23 85 30 40 . 31 . . . 9 17 26 7 16 . 1 12 1 . . 7 5 10 40 8 Message Errors 105 | . 6 29 9 12 . 9 . . . 1 3 3 1 8 . 1 6 . . . 1 2 2 9 3 Matter Fused 70 | . 2 19 4 10 . 4 . . . 2 3 5 4 3 . . 3 . . . 1 . . 8 2 Heat Flow Errors 44 | . 3 8 3 7 . 7 . . . 1 4 . 1 1 . . 2 . . . . 1 3 3 . Energy Discharges 38 | . 1 9 5 5 . 2 . . . 1 1 3 1 1 . . 1 . . . 3 . 2 2 1 Parts Rejected 3 | . . 1 . . . . . . . . . 1 . . . . . . . . . . . 1 . Parts Fused 8 | . 1 1 2 . . 2 . . . 1 . 1 . . . . . . . . . . . . . Data Loss (minor) 45 | . 4 8 5 5 . 4 . . . 2 3 3 . 1 . . . . . . . . 2 8 . Data Loss (major) 15 | . 3 3 . 1 . . . . . . 1 3 . . . . . . . . . . 1 2 1 Misfires 20 | . 1 5 2 . . 1 . . . . 2 4 . 1 . . . 1 . . . 1 . 1 1 Alerts 9 | . 2 2 . . . . . . . 1 . . . 1 . . . . . . 1 1 . 1 . Misdirections 1 | . . . . . . . . . . . . . . . . . . . . . . . . 1 . Weapon Failures 10 | . . . . . . 2 . . . . . 3 . . . . . . . . 1 . . 4 . Overload Shots 2 | . . . . . . 1 1 . . . . . . . . . . . . . . . . . . Overflow Damage 899 | . 38 3 4 . . 21 18 58 . 27 36 45 . 20 11 14 . . . . . . 45 119 440 Projectiles 684 | . . . 4 . . 21 18 58 . 27 36 45 . 20 . . . . . . . . 27 78 350 Explosions 208 | . 38 3 . . . . . . . . . . . . 11 14 . . . . . . 18 34 90 Melee 7 | . . . . . . . . . . . . . . . . . . . . . . . . 7 . Knockbacks 47 | . 1 1 . . . . . . . . 3 1 . 3 2 . . . . . . . 6 26 4 Impact . | . . . . . . . . . . . . . . . . . . . . . . . . . . Kinetic 44 | . 1 1 . . . . . . . . 3 1 . 3 2 . . . . . . . 6 23 4 Secondary 3 | . . . . . . . . . . . . . . . . . . . . . . . . 3 . Self-Inflicted Damage 299 | . . 54 1 . 7 . . . . . . . . . 98 . . . . . . . 43 11 85 Shots 9 | . . 3 . . . . . . . . . . . . 2 . . . . . . . 1 1 2 Rammed 16 | . 4 . 4 . 2 . . 1 1 . . . . . 1 . . . . . . . . 3 . Targets Rammed 17 | . 5 . 4 . 2 . . 1 1 . . . . . 1 . . . . . . . . 3 . Kicked . | . . . . . . . . . . . . . . . . . . . . . . . . . . Crushed 1 | . 1 . . . . . . . . . . . . . . . . . . . . . . . . Highest Temperature 485 | . 261 250 275 270 6 448 156 8 114 101 93 . 203 155 . 6 162 . . 180 485 262 224 135 186 Average Temperature 78 | . 40 93 72 95 3 83 51 6 48 37 45 . 133 68 . 4 50 . . 66 139 87 119 64 66 Received Heat Transfer 1854 | . 54 288 27 . . 365 43 . 24 162 37 72 . 190 162 27 51 . . . 219 49 56 28 . Effects 1 | . . . . . . . . . . . . . . . . . . . . . 1 . . . . Matter Decay 1 | . . . . . . . . . . . . . . . . . . . . . 1 . . . . Siege Activations 16 | . . . . . . . . . . 1 . . . 3 1 . . . . . 3 . 3 4 1 Total Turns 166 | . . . . . . . . . . 7 . . . 29 19 . . . . . 15 . 32 61 3 Longest Duration 27 | . . . . . . . . . . 7 . . . 13 19 . . . . . 6 . 14 27 3 Martial Activations . | . . . . . . . . . . . . . . . . . . . . . . . . . . Shielding Activations . | . . . . . . . . . . . . . . . . . . . . . . . . . . Robots Disrupted . | . . . . . . . . . . . . . . . . . . . . . . . . . . Combat Hostiles . | . . . . . . . . . . . . . . . . . . . . . . . . . . Robots Corrupted 2 | . . . . . . . . . . . . . . . . . . . . . . . 1 1 . Combat Hostiles . | . . . . . . . . . . . . . . . . . . . . . . . . . . Parts Fried 4 | . . . . . . . . . . . . . . . . . . . . . . . 1 3 . Impact Corruptions 1 | . . . . . . . . . . . . . . . . . . . . . . . . 1 . Robots Melted 5 | . . 1 . . . 3 . . . . . . . . . . . . . . . . . . 1 Combat Hostiles 4 | . . 1 . . . 2 . . . . . . . . . . . . . . . . . . 1 Parts Melted 24 | . . 3 1 . . 12 . 5 . . . . . . . . . . . . 2 . . . 1 Heat Transferred 8990 | . . 408 324 . 37 1650 1325 1475 50 . . . . . 250 . . . . . 2100 150 300 111 810 Parts Sabotaged . | . . . . . . . . . . . . . . . . . . . . . . . . . . Parts Stolen . | . . . . . . . . . . . . . . . . . . . . . . . . . . Parts Stripped . | . . . . . . . . . . . . . . . . . . . . . . . . . . Power Chain Reactions 1 | . . . . . . . . . . . . . . . . . . . . . . . 1 . . Alert | -11 -10 -10 -9 -9 -6 -6 -6 -6 -6 -5 -5 -5 -5 -4 -4 -4 -4 -4 -3 -3 -3 -3 -2 -2 -1 ------- Run | Yrd Mat Sub Rec Scr Fac Ext Cet Arc Hub Fac Upp Upp Zhi Pro Fac Upp Upp War Pro Res Qua Sec Res Tes Acc Maximum Alert Level 2 | . 1 . . . . 2 1 1 . 1 . . . . 2 . . . . . 2 1 1 2 2 Low Security (%) 72 | 100 60 . 100 . 100 60 39 96 100 86 . . . . 41 . . . . 100 18 97 78 85 . Level 1 22 | . 39 . . . . 34 60 3 . 13 . . . . 37 . . . . . 58 2 21 5 63 Level 2 5 | . . . . . . 4 . . . . . . . . 20 . . . . . 22 . . 9 36 Level 3 . | . . . . . . . . . . . . . . . . . . . . . . . . . . Level 4 . | . . . . . . . . . . . . . . . . . . . . . . . . . . Level 5 . | . . . . . . . . . . . . . . . . . . . . . . . . . . High Security . | . . . . . . . . . . . . . . . . . . . . . . . . . . Max Security . | . . . . . . . . . . . . . . . . . . . . . . . . . . Peak Influence 571 | 10 298 . 122 . 65 519 373 215 143 247 . . . . 510 . . . . 42 437 206 266 571 454 Initial 335 | . . . 122 . . . 285 122 . . . . . . 302 . . . . . . 193 . 119 335 Average 121 | . 131 . 23 . 5 153 232 84 51 83 . . . . 253 . . . . 1 299 30 77 177 384 Influence Increases 9639 | 15 596 485 293 . 100 1260 660 310 452 506 231 319 . 225 1020 155 150 . . 109 839 104 444 890 476 Destroy 0b10 Robot/C 4360 | . 300 240 80 . 40 600 280 80 180 260 160 280 . 180 320 120 140 . . 20 440 . 220 280 140 Destroy 0b10 Robot/NC 280 | 15 60 . 10 . . 20 10 40 15 . . . . 10 20 . . . . . 15 5 15 15 30 Destroy Leader 602 | . 60 20 . . 20 44 20 . 36 40 20 30 . 20 54 20 10 . . 10 64 2 62 40 30 Allied During Kill 1263 | . . . 5 . 30 477 310 118 129 23 51 9 . . . . . . . 12 99 . . . . Successful Hack 149 | . 25 . 17 . . 12 . . . 22 . . . . 21 . . . . 33 14 5 . . . Select Force Hacks 230 | . . . 180 . . . . . 50 . . . . . . . . . . . . . . . . Disable Machine 810 | . 60 . . . . 15 15 45 . 60 . . . . 60 . . . . . 75 60 30 330 60 Destroy Structure 1210 | . 76 . 1 . 10 47 25 12 42 86 . . . . 200 . . . . 34 102 32 117 210 216 Advance Influence 300 | . . . . . . . . . . . . . . . 300 . . . . . . . . . . Lose Combat Pursuer 435 | . 15 225 . . . 45 . 15 . 15 . . . 15 45 15 . . . . 30 . . 15 . Influence Decreases 9188 | 15 380 446 545 3 100 749 864 617 452 277 396 383 . 220 601 356 361 12 . 109 494 449 232 543 584 Entered New Map 1434 | . . 104 133 3 . . 226 185 . . 85 13 . . 3 158 43 12 . . . 152 . 93 224 Time Decay 6492 | 15 370 292 400 . 94 489 428 352 233 242 291 340 . 210 518 198 318 . . 99 454 147 212 440 350 Lost Part 220 | . 10 50 . . . 10 10 . . 10 . 10 . 10 70 . . . . . . . 20 10 10 Lost Ally 742 | . . . 12 . 6 100 200 80 219 25 20 20 . . 10 . . . . 10 40 . . . . Purge Threat 300 | . . . . . . 150 . . . . . . . . . . . . . . . 150 . . . Squads Dispatched 47 | . 2 . . . 1 . . . 8 6 . . . . 5 . . . . 7 5 . 5 5 3 Investigation 8 | . 1 . . . . . . . 1 2 . . . . . . . . . 4 . . . . . Extermination 17 | . . . . . 1 . . . 2 2 . . . . 2 . . . . . 2 . 2 3 3 Reinforcement 20 | . 1 . . . . . . . 5 2 . . . . 3 . . . . 3 3 . 3 . . Assault 2 | . . . . . . . . . . . . . . . . . . . . . . . . 2 . Garrison . | . . . . . . . . . . . . . . . . . . . . . . . . . . Intercept . | . . . . . . . . . . . . . . . . . . . . . . . . . . Searches Triggered . | . . . . . . . . . . . . . . . . . . . . . . . . . . Construction Impeded 2 | . . . . . . . . . 2 . . . . . . . . . . . . . . . . Haulers Reinforced 3 | . . . . . . . . . . . . . . . 1 . . . . 1 . . 1 . . Active Scanning Responses . | . . . . . . . . . . . . . . . . . . . . . . . . . . Cargo Convoy Interrupts 1 | . . . . . . . . . . . . . . . 1 . . . . . . . . . . Stealth | -11 -10 -10 -9 -9 -6 -6 -6 -6 -6 -5 -5 -5 -5 -4 -4 -4 -4 -4 -3 -3 -3 -3 -2 -2 -1 --------- Run | Yrd Mat Sub Rec Scr Fac Ext Cet Arc Hub Fac Upp Upp Zhi Pro Fac Upp Upp War Pro Res Qua Sec Res Tes Acc Distress Signals 23 | . 2 . . . . 2 2 . 2 1 . . . . 3 . . 3 . 6 . . . 1 1 Communications Jammed 114 | . . . . . . . . . . . . . . . 57 . . . . . 48 2 2 3 2 Distress Signals 114 | . . . . . . . . . . . . . . . 57 . . . . . 48 2 2 3 2 Times Spotted 337 | . 24 25 4 . . 35 11 15 16 14 8 13 . 11 28 6 7 28 . 1 22 7 22 26 14 Peak Tracking Total 11 | . 5 6 1 . . 6 5 2 8 3 3 3 . 4 8 4 2 11 . 1 5 5 10 6 4 Tactical Retreats 15 | . 1 3 . . . 2 . 1 . 1 . . . 1 2 1 . . . . 2 . . 1 . Traps | -11 -10 -10 -9 -9 -6 -6 -6 -6 -6 -5 -5 -5 -5 -4 -4 -4 -4 -4 -3 -3 -3 -3 -2 -2 -1 ------- Run | Yrd Mat Sub Rec Scr Fac Ext Cet Arc Hub Fac Upp Upp Zhi Pro Fac Upp Upp War Pro Res Qua Sec Res Tes Acc Traps Triggered 23 | . 1 1 . 1 . 3 . . 3 1 . . . . 1 . . . . 2 . 1 7 2 . Indirectly . | . . . . . . . . . . . . . . . . . . . . . . . . . . Trap Hack Attempts . | . . . . . . . . . . . . . . . . . . . . . . . . . . Triggered . | . . . . . . . . . . . . . . . . . . . . . . . . . . Disarmed . | . . . . . . . . . . . . . . . . . . . . . . . . . . Reprogrammed . | . . . . . . . . . . . . . . . . . . . . . . . . . . Reused . | . . . . . . . . . . . . . . . . . . . . . . . . . . Traps Extracted . | . . . . . . . . . . . . . . . . . . . . . . . . . . Installed 1 | . . . . 1 . . . . . . . . . . . . . . . . . . . . . Triggered . | . . . . . . . . . . . . . . . . . . . . . . . . . . Most Traps Carried 1 | . . 1 1 1 . . . . . . . . . . . . . . . . . . . . . Machines | -11 -10 -10 -9 -9 -6 -6 -6 -6 -6 -5 -5 -5 -5 -4 -4 -4 -4 -4 -3 -3 -3 -3 -2 -2 -1 ---------- Run | Yrd Mat Sub Rec Scr Fac Ext Cet Arc Hub Fac Upp Upp Zhi Pro Fac Upp Upp War Pro Res Qua Sec Res Tes Acc Machines Disabled 60 | . 4 3 . . . 2 1 3 . 4 . . . . 4 . . 1 . 1 5 4 2 22 4 Max in Single Turn 4 | . 1 3 . . . 1 1 1 . 1 . . . . 2 . . 1 . 1 1 1 1 4 1 Garrison Access 2 | . . . . . . . . . . . . . . . 1 . . . . . . . . 1 . Network Hub 1 | . . . . . . . . . 1 . . . . . . . . . . . . . . . . Machines Repaired . | . . . . . . . . . . . . . . . . . . . . . . . . . . Machines Dismantled . | . . . . . . . . . . . . . . . . . . . . . . . . . . Machines Sabotaged 1 | . . . . . . . . . 1 . . . . . . . . . . . . . . . . Overloaded Fab Kills . | . . . . . . . . . . . . . . . . . . . . . . . . . . Hacking | -11 -10 -10 -9 -9 -6 -6 -6 -6 -6 -5 -5 -5 -5 -4 -4 -4 -4 -4 -3 -3 -3 -3 -2 -2 -1 --------- Run | Yrd Mat Sub Rec Scr Fac Ext Cet Arc Hub Fac Upp Upp Zhi Pro Fac Upp Upp War Pro Res Qua Sec Res Tes Acc Machines Accessed 71 | . 6 1 12 1 3 6 2 . 3 5 1 . 4 . 5 . . 1 . 5 2 2 9 2 1 Terminals 44 | . 5 . 6 . 1 6 2 . 3 2 1 . . . 4 . . . . 3 2 2 4 2 1 Fabricators 3 | . . . . . 1 . . . . . . . . . . . . . . 1 . . 1 . . Repair Stations 2 | . . . . . . . . . . 1 . . . . . . . . . . . . 1 . . Recycling Units 11 | . 1 . 6 . 1 . . . . 2 . . . . . . . . . 1 . . . . . Scanalyzers 2 | . . . . . . . . . . . . . . . . . . . . . . . 2 . . Garrison Access 2 | . . . . . . . . . . . . . . . 1 . . . . . . . 1 . . Total Hacks 200 | . 18 5 30 7 6 12 3 . 6 24 1 . 17 . 16 . . 1 . 13 7 6 18 7 3 Successful 94 | . 10 5 18 7 1 6 1 . 2 8 1 . 17 . 3 . . 1 . 5 1 3 5 . . Failed 105 | . 7 . 12 . 5 6 2 . 4 16 . . . . 13 . . . . 8 6 3 13 7 3 Catastrophic 23 | . 1 . 1 . 3 . 1 . 1 1 . . . . 5 . . . . 3 2 1 3 1 . Database Lockouts 1 | . 1 . . . . . . . . . . . . . . . . . . . . . . . . Manual 80 | . 15 . 24 . 1 1 1 . 5 8 . . . . 11 . . . . 8 2 3 1 . . Terminals 131 | . 15 . 20 . 3 12 3 . 6 16 1 . . . 15 . . . . 10 7 6 7 7 3 Fabricators 6 | . . . . . 2 . . . . . . . . . . . . . . 1 . . 3 . . Repair Stations 6 | . . . . . . . . . . 3 . . . . . . . . . . . . 3 . . Recycling Units 21 | . 3 . 10 . 1 . . . . 5 . . . . . . . . . 2 . . . . . Scanalyzers 4 | . . . . . . . . . . . . . . . . . . . . . . . 4 . . Garrison Access 2 | . . . . . . . . . . . . . . . 1 . . . . . . . 1 . . Terminal Hacks 55 | . 2 5 3 7 . 5 1 . 1 5 1 . 17 . 1 . . 1 . 2 . 2 2 . . Record 14 | . . 5 1 . . . 1 . . 1 1 . 5 . . . . . . . . . . . . Part Schematic 5 | . 1 . . . . . . . . . . . 4 . . . . . . . . . . . . Robot Schematic 1 | . . . 1 . . . . . . . . . . . . . . . . . . . . . . Robot Analysis 13 | . 1 . 1 7 . . . . . . . . 4 . . . . . . . . . . . . Prototype ID Bank 4 | . . . . . . . . . . . . . 4 . . . . . . . . . . . . Open Door 4 | . . . . . . 3 . . . . . . . . . . . 1 . . . . . . . Level Access Points 1 | . . . . . . . . . 1 . . . . . . . . . . . . . . . . Branch Access Points 3 | . . . . . . . . . . 1 . . . . 1 . . . . 1 . . . . . Recycling Unit Index 1 | . . . . . . . . . . 1 . . . . . . . . . . . . . . . Alert Level 4 | . . . . . . 1 . . . . . . . . . . . . . . . 1 2 . . Unreport Threat 2 | . . . . . . 1 . . . . . . . . . . . . . . . 1 . . . Maintenance Status 2 | . . . . . . . . . . 1 . . . . . . . . . 1 . . . . . Patrol Status 1 | . . . . . . . . . . 1 . . . . . . . . . . . . . . . Fabricator Hacks 2 | . . . . . 1 . . . . . . . . . . . . . . 1 . . . . . Network Status 1 | . . . . . 1 . . . . . . . . . . . . . . . . . . . . Build 1 | . . . . . . . . . . . . . . . . . . . . 1 . . . . . Repair Station Hacks 3 | . . . . . . . . . . 2 . . . . . . . . . . . . 1 . . Scan Component 2 | . . . . . . . . . . 1 . . . . . . . . . . . . 1 . . Repair 1 | . . . . . . . . . . 1 . . . . . . . . . . . . . . . Recycling Unit Hacks 3 | . . . 3 . . . . . . . . . . . . . . . . . . . . . . Retrieve Components 3 | . . . 3 . . . . . . . . . . . . . . . . . . . . . . Scanalyzer 2 | . . . . . . . . . . . . . . . . . . . . . . . 2 . . Insert Component 1 | . . . . . . . . . . . . . . . . . . . . . . . 1 . . Analyze 1 | . . . . . . . . . . . . . . . . . . . . . . . 1 . . Garrison Access Hacks 1 | . . . . . . . . . . . . . . . 1 . . . . . . . . . . Seal Access 1 | . . . . . . . . . . . . . . . 1 . . . . . . . . . . Unauthorized Hacks 27 | . 8 . 11 . . 1 . . 1 1 . . . . 1 . . . . 2 1 1 . . . Terminals 19 | . 8 . 5 . . 1 . . 1 . . . . . 1 . . . . 1 1 1 . . . Botnet 9 | . 3 . 1 . . 1 . . . . . . . . 1 . . . . 1 1 1 . . . Skim 9 | . 5 . 4 . . . . . . . . . . . . . . . . . . . . . . Sabotage 1 | . . . . . . . . . 1 . . . . . . . . . . . . . . . . Fabricators . | . . . . . . . . . . . . . . . . . . . . . . . . . . Repair Stations . | . . . . . . . . . . . . . . . . . . . . . . . . . . Recycling Units 8 | . . . 6 . . . . . . 1 . . . . . . . . . 1 . . . . . Tunnel 6 | . . . 6 . . . . . . . . . . . . . . . . . . . . . . Scrapoids 2 | . . . . . . . . . . 1 . . . . . . . . . 1 . . . . . Scanalyzers . | . . . . . . . . . . . . . . . . . . . . . . . . . . Garrison Access . | . . . . . . . . . . . . . . . . . . . . . . . . . . Data Cores Recovered 1 | . . . . . . 1 . . . . . . . . . . . . . . . . . . . Used . | . . . . . . . . . . . . . . . . . . . . . . . . . . Hacking Detections 46 | . 2 . 6 . 3 3 2 . 3 3 . . . . 4 . . . . 5 2 2 8 2 1 Full Trace Events 6 | . . . 5 . . . . . . 1 . . . . . . . . . . . . . . . Feedback Events . | . . . . . . . . . . . . . . . . . . . . . . . . . . Feedback Blocked . | . . . . . . . . . . . . . . . . . . . . . . . . . . Robot Schematics Acquired 6 | . . . 1 . . . . . . . . . . . . . . . . . 5 . . . . Robots Built . | . . . . . . . . . . . . . . . . . . . . . . . . . . Authchips . | . . . . . . . . . . . . . . . . . . . . . . . . . . Time . | . . . . . . . . . . . . . . . . . . . . . . . . . . Total Robot Build Rating . | . . . . . . . . . . . . . . . . . . . . . . . . . . Part Schematics Acquired 12 | . 1 . . . . . . . . . . . 4 . . . . . . . 6 . 1 . . Parts Built 2 | . . . . . . . . . . . . . . . . . . . . 2 . . . . . Authchips . | . . . . . . . . . . . . . . . . . . . . . . . . . . Time 69 | . . . . . . . . . . . . . . . . . . . . 69 . . . . . Total Part Build Rating 18 | . . . . . . . . . . . . . . . . . . . . 18 . . . . . Parts Repaired 1 | . . . . . . . . . . 1 . . . . . . . . . . . . . . . Time 37 | . . . . . . . . . . 37 . . . . . . . . . . . . . . . Parts Recycled . | . . . . . . . . . . . . . . . . . . . . . . . . . . Recycled Matter . | . . . . . . . . . . . . . . . . . . . . . . . . . . Retrieved Matter . | . . . . . . . . . . . . . . . . . . . . . . . . . . Retrieved Components 5 | . . . 5 . . . . . . . . . . . . . . . . . . . . . . Parts Scanalyzed 1 | . . . . . . . . . . . . . . . . . . . . . . . 1 . . Part Schematics Acquired 1 | . . . . . . . . . . . . . . . . . . . . . . . 1 . . Parts Damaged 1 | . . . . . . . . . . . . . . . . . . . . . . . 1 . . Bothacking | -11 -10 -10 -9 -9 -6 -6 -6 -6 -6 -5 -5 -5 -5 -4 -4 -4 -4 -4 -3 -3 -3 -3 -2 -2 -1 ------------ Run | Yrd Mat Sub Rec Scr Fac Ext Cet Arc Hub Fac Upp Upp Zhi Pro Fac Upp Upp War Pro Res Qua Sec Res Tes Acc Used RIF Installer . | . . . . . . . . . . . . . . . . . . . . . . . . . . Robots Hacked . | . . . . . . . . . . . . . . . . . . . . . . . . . . Non-combat . | . . . . . . . . . . . . . . . . . . . . . . . . . . Combat . | . . . . . . . . . . . . . . . . . . . . . . . . . . Robot Hacks Applied . | . . . . . . . . . . . . . . . . . . . . . . . . . . Relay Couplers Released 2 | . . . . . . . . . . . . . . . . . . . . . . . . 2 . Machine Destruction 2 | . . . . . . . . . . . . . . . . . . . . . . . . 2 . Fabnet Peak Effective % . | . . . . . . . . . . . . . . . . . . . . . . . . . . Robots Rewired 29 | . . . 4 . . 25 . . . . . . . . . . . . . . . . . . . Allies Hacked . | . . . . . . . . . . . . . . . . . . . . . . . . . . Hacks Repelled . | . . . . . . . . . . . . . . . . . . . . . . . . . . Allies | -11 -10 -10 -9 -9 -6 -6 -6 -6 -6 -5 -5 -5 -5 -4 -4 -4 -4 -4 -3 -3 -3 -3 -2 -2 -1 -------- Run | Yrd Mat Sub Rec Scr Fac Ext Cet Arc Hub Fac Upp Upp Zhi Pro Fac Upp Upp War Pro Res Qua Sec Res Tes Acc Total Allies 53 | . . . 4 5 . 29 5 . . 5 . . . . . . . . . 5 . . . . . Largest Group 29 | . . . 4 7 6 29 26 19 15 5 4 1 . . . . . . . 5 3 . . . . Highest-Rated Group 1172 | . . . 64 276 265 931 1172 853 681 241 188 47 . . . . . . . 320 192 . . . . Highest-Rated Ally 159 | . . . 27 50 50 159 159 96 96 50 47 47 . . . . . . . 64 64 . . . . Total Orders 22 | . . . . 2 . . 8 2 . 7 2 . . . 1 . . . . . . . . . . STAY 8 | . . . . 1 . . 4 1 . . 1 . . . 1 . . . . . . . . . . FOLLOW 7 | . . . . 1 . . 4 1 . . 1 . . . . . . . . . . . . . . EXPLORE 2 | . . . . . . . . . . 2 . . . . . . . . . . . . . . . RETURN 5 | . . . . . . . . . . 5 . . . . . . . . . . . . . . . Ally Attacks 492 | . . . 12 . 16 81 101 49 80 21 35 11 . . . . . . . 27 59 . . . . Total Damage 11623 | . . . 118 . 294 1698 2427 1209 1984 666 718 200 . . . . . . . 789 1520 . . . . Kills 65 | . . . 1 . 2 11 15 5 13 1 5 3 . . . . . . . 1 8 . . . . Allies Corrupted 3 | . . . . . . 1 . . 2 . . . . . . . . . . . . . . . . Allies Melted . | . . . . . . . . . . . . . . . . . . . . . . . . . . Intel | -11 -10 -10 -9 -9 -6 -6 -6 -6 -6 -5 -5 -5 -5 -4 -4 -4 -4 -4 -3 -3 -3 -3 -2 -2 -1 ------- Run | Yrd Mat Sub Rec Scr Fac Ext Cet Arc Hub Fac Upp Upp Zhi Pro Fac Upp Upp War Pro Res Qua Sec Res Tes Acc Active Infowar (turns) 14610 | . . 1943 . . . . . . . 420 790 564 . 179 1436 404 705 1219 219 2419 1063 445 938 1080 786 Optics 3229 | . . . . . . . . . . . . . . 179 344 . . . 136 2419 151 . . . . Sensors 4504 | . . . . . . . . . . . . . . . 634 . . . . . 905 445 906 1080 534 Terrain 3086 | . . . . . . . . . . . . . . . . . . . . . 121 445 905 1079 536 Seismic 1943 | . . 1943 . . . . . . . . . . . . . . . . . . . . . . . Jamming 12449 | . . . . . . . . . . 420 790 564 . . 1402 404 705 1219 219 2419 1060 445 938 1080 784 Robot Analysis Total 13 | . 1 . 1 7 . . . . . . . . 4 . . . . . . . . . . . . Derelict Logs Recovered 11 | . . 1 . 5 . . . . . . 1 2 . 1 . 1 . . . . . . . . . Drone Launches 6 | . . . . . . . . . . 5 . . . . 1 . . . . . . . . . . Drone Recoveries 4 | . . . . . . . . . . 4 . . . . . . . . . . . . . . . Exploration | -11 -10 -10 -9 -9 -6 -6 -6 -6 -6 -5 -5 -5 -5 -4 -4 -4 -4 -4 -3 -3 -3 -3 -2 -2 -1 ------------- Run | Yrd Mat Sub Rec Scr Fac Ext Cet Arc Hub Fac Upp Upp Zhi Pro Fac Upp Upp War Pro Res Qua Sec Res Tes Acc Turns Passed 41920 | 142 3103 6350 2169 10088 1252 1676 1058 1086 616 1022 790 861 277 586 1436 404 705 1239 219 2419 1172 445 938 1080 787 Spaces Moved 16509 | 69 1100 2243 740 3939 346 845 500 277 220 458 355 434 202 320 846 250 475 533 153 452 467 204 405 405 271 Core 4 | 1 . . . . . . . . . . . . . . . . . . . . . . . . 3 Treads 7825 | 68 1100 899 342 3939 . . 2 1 2 183 226 . . 2 46 . . 33 . . 238 . 71 405 268 Legs . | . . . . . . . . . . . . . . . . . . . . . . . . . . Wheels 8680 | . . 1344 398 . 346 845 498 276 218 275 129 434 202 318 800 250 475 500 153 452 229 204 334 . . Hover . | . . . . . . . . . . . . . . . . . . . . . . . . . . Flight . | . . . . . . . . . . . . . . . . . . . . . . . . . . Fastest Speed 50 | 50 160 200 230 160 130 130 120 140 130 130 140 140 130 140 120 140 140 140 140 140 140 140 140 160 50 Average Speed 201 | 158 248 259 278 246 141 130 133 140 137 179 203 140 130 140 143 140 140 151 140 140 191 140 151 172 221 Slowest Speed 560 | 160 320 320 560 320 160 130 400 240 240 240 240 140 140 240 240 140 140 320 140 140 240 140 250 245 246 Overloaded Moves . | . . . . . . . . . . . . . . . . . . . . . . . . . . Propulsion Burnouts . | . . . . . . . . . . . . . . . . . . . . . . . . . . Robots Hopped . | . . . . . . . . . . . . . . . . . . . . . . . . . . Potential Cave-ins 4 | . . . . . . . . . 3 . . . . . . . . . . 1 . . . . . Cave-ins Triggered 1 | . 1 . . . . . . . . . . . . . . . . . . . . . . . . Teleports 1 | . . . . . . . . . . . . . . . . . . . . . . . . 1 . Exploration Rate (%) 48 | 5 99 59 99 89 7 88 79 82 33 17 45 54 60 49 24 51 67 53 35 13 55 13 20 56 6 Regions Visited 25 Branch Regions 18 Pre-discovered Areas 15 | . 2 1 6 . . . . . . . 1 2 3 . . . . . . . . . . . . Known Exits Taken 15 | . 1 1 . . 1 . . . 1 1 . . . . 1 1 1 1 1 1 1 1 1 1 . Unknown Exits Taken 10 | 1 . . 1 1 . 1 1 1 . . 1 1 1 1 . . . . . . . . . . . Scrap Searched 28 | . . 12 . 9 . . . . . . 2 . . 2 . 1 1 . 1 . . . . . . Spaces Dug 112 | . 15 . . . 5 10 1 . 19 8 . 1 . 5 12 . . . 2 5 1 5 7 11 5 Terrain Destroyed 897 | . 89 62 1 . 5 50 23 11 43 61 6 39 . 48 129 31 8 1 2 9 41 17 37 89 95 Melee . | . . . . . . . . . . . . . . . . . . . . . . . . . . Projectile 474 | . . 1 1 . 5 33 23 11 43 59 6 39 . 48 45 12 8 1 2 9 41 17 27 32 11 AOE 421 | . 89 61 . . . 17 . . . . . . . . 84 19 . . . . . . 10 57 84 Terrain Rammed . | . . . . . . . . . . . . . . . . . . . . . . . . . . Walls Destroyed . | . . . . . . . . . . . . . . . . . . . . . . . . . . Machines Disabled . | . . . . . . . . . . . . . . . . . . . . . . . . . . Actions | -11 -10 -10 -9 -9 -6 -6 -6 -6 -6 -5 -5 -5 -5 -4 -4 -4 -4 -4 -3 -3 -3 -3 -2 -2 -1 --------- Run | Yrd Mat Sub Rec Scr Fac Ext Cet Arc Hub Fac Upp Upp Zhi Pro Fac Upp Upp War Pro Res Qua Sec Res Tes Acc Total 24062 | 84 1368 2623 827 4338 1097 1326 847 925 494 582 403 629 219 400 976 275 490 967 155 2228 712 348 656 687 406 Wait 5695 | . 175 233 11 314 715 67 244 616 237 32 29 141 . 27 44 . 3 411 1 1714 154 111 157 185 74 Move 16484 | 68 1099 2242 739 3938 345 844 499 276 220 457 354 433 201 319 845 249 474 532 152 451 466 203 404 404 270 Hop . | . . . . . . . . . . . . . . . . . . . . . . . . . . Pick Up 185 | 2 18 18 6 38 8 5 20 4 . 13 . 5 3 2 2 1 2 5 . 8 7 2 5 6 5 Fast Attach 109 | 6 . 5 2 7 5 6 3 1 2 7 4 4 6 2 8 2 . 4 . 7 3 3 14 7 1 Attach 63 | . 2 3 . 4 4 . 6 . 1 8 1 3 . 3 1 4 . 1 . 2 1 . 5 4 10 Detach 26 | . . 1 . 2 . . 3 . . 3 2 1 1 1 1 1 . 1 . . . . 4 2 3 Swap 183 | . 18 26 5 2 6 22 9 1 2 5 . 1 1 3 8 4 . 3 1 12 24 4 10 12 4 Drop 233 | . 1 15 15 26 5 24 30 2 1 12 4 10 7 3 8 1 . 9 . 15 9 2 16 11 7 Fire 726 | 8 50 80 10 5 7 60 33 24 27 45 9 29 . 40 58 13 11 1 1 19 48 23 41 52 32 Melee . | . . . . . . . . . . . . . . . . . . . . . . . . . . Ram 5 | . . . 1 . 2 . . . . . . . . . 1 . . . . . . . . 1 . Kick . | . . . . . . . . . . . . . . . . . . . . . . . . . . Crush 12 | . 5 . 3 . . . . 1 . . . . . . . . . . . . . . . 3 . Escape Stasis 8 | . . . . . . 4 . . 4 . . . . . . . . . . . . . . . . Rewire 331 | . . . 35 1 . 294 . . . . . 1 . . . . . . . . . . . . . Trap 1 | . . . . 1 . . . . . . . . . . . . . . . . . . . . . Miscellaneous 1 | . . . . . . . . . . . . 1 . . . . . . . . . . . . . Route ------- -11/Scrapyard -10/Materials (discovered 5 exits: *Mat x3 / *Min / *Sub) -10/Subcaves (discovered 3 exits: Mat x2 / *Rec) -9/Recycling (discovered 2 exits: [*Fac] / *Scr) -9/Scraptown (discovered 2 exits: *Fac x2) -6/Factory (discovered 2 exits: Fac / *Ext) -6/Extension (discovered 2 exits: *Fac / *Cet) -6/Cetus (discovered 2 exits: *Fac / [*Arc]) -6/Archives (discovered 3 exits: *Fac / *Hub x2) -6/Hub_04(d) (discovered 4 exits: *Fac x4) -5/Factory (discovered 3 exits: *Fac / *Upp x2) -5/Upper Caves -5/Upper Caves (discovered 2 exits: *Fac / *Zhi) -5/Zhirov -4/Proximity Caves -4/Factory (discovered 3 exits: *Res / *Upp x2) -4/Upper Caves -4/Upper Caves -4/Warlord -3/Proximity Caves -3/Research (discovered 3 exits: Arm / *Qua x2) -3/Quarantine (discovered 3 exits: *Res / *Sec / [*Frg]) -3/Section 7 -2/Research (discovered 2 exits: Acc / *Tes) -2/Testing -1/Access To Fleet Rendezvous History --------- Turn | Location | Event 32 | -11/Scrapyard | Discovered new exit (range 15) 143 | -11/Scrapyard | Entered Materials 279 | -10/Materials | Central database locked down 313 | -10/Materials | Build established: Mutant 1328 | -10/Materials | Discovered new exit (range 8) 1486 | -10/Materials | Loaded intel: 1 repair station location 1575 | -10/Materials | Discovered new exit (range 16) 1584 | -10/Materials | Learned Storage emergency access door positions 1641 | -10/Materials | Identified exit to Materials 1655 | -10/Materials | Learned 2 Storage zone layouts 1669 | -10/Materials | Identified exit to Subcaves 1690 | -10/Materials | Identified exit to Mines 1720 | -10/Materials | Learned Storage security intel 1758 | -10/Materials | Learned location of 2 exits from Subcaves 1808 | -10/Materials | Crushed by falling debris 3246 | -10/Materials | Entered Subcaves 3247 | -10/Subcaves | Identified exit to Materials 4338 | -10/Subcaves | Visited Clippyterm 4347 | -10/Subcaves | Identified exit to Recycling 4347 | -10/Subcaves | Learned location of Deep Caves (-6) 5694 | -10/Subcaves | A swath of the cavern ceiling suddenly collapsed 6335 | -10/Subcaves | Disturbed a concealed Subdweller 6535 | -10/Subcaves | Lost 4 parts (1p1n1u1w) 7477 | -10/Subcaves | Learned Materials stockpile data 7824 | -10/Subcaves | Core integrity fell below 50% 9596 | -10/Subcaves | Entered Recycling 10655 | -9/Recycling | Build established: Commander-Mutant 11011 | -9/Recycling | Build established: Mutant 11172 | -9/Recycling | Discovered new exit (range 6) 11679 | -9/Recycling | Scanned before Scraplab entrance 11727 | -9/Recycling | Entered Scraplab 11756 | -9/Recycling | Discovered new exit (range 3) 11765 | -9/Recycling | Entered Scraptown 11765 | -9/Scraptown | Accompanied by 2 allies 11810 | -9/Scraptown | Heard Great Nut preacher, LISTEN AND RECITE! 12076 | -9/Scraptown | Visited UFD Registry 12076 | -9/Scraptown | Registered with UFD as "Smoothtorch" 12274 | -9/Scraptown | Scanned Subdweller tech in exchange for log data 12284 | -9/Scraptown | Learned Factory trap positions 12287 | -9/Scraptown | Learned 8 Factory zone layouts 12297 | -9/Scraptown | Learned Factory emergency access door positions 12300 | -9/Scraptown | Learned 12 Factory zone layouts 12303 | -9/Scraptown | Learned location of 2 exits from Lower Caves 12351 | -9/Scraptown | Discovered new exit (range 7) 12463 | -9/Scraptown | Guru changed UFD alias to "Cognade" 12733 | -9/Scraptown | Visited Junk Cannon Lab 12795 | -9/Scraptown | Visited Supply Room 12841 | -9/Scraptown | Visited Derelict Rescue Squad 12875 | -9/Scraptown | Visited Science Testing Area 12899 | -9/Scraptown | Visited Curators Association 12995 | -9/Scraptown | Visited Analyses Database 13151 | -9/Scraptown | Delivered Scrap Shield to a Scientist 13320 | -9/Scraptown | Found DRS Beacon 13417 | -9/Scraptown | Visited Junk Repository 13484 | -9/Scraptown | Visited Scrapoid Pod Storage 13623 | -9/Scraptown | Visited Cyclists 13647 | -9/Scraptown | Entered Cyclist Reading Room 13678 | -9/Scraptown | Visited IN-MT5's Study 13777 | -9/Scraptown | Visited Red Mages 13909 | -9/Scraptown | Visited The Evicted 13942 | -9/Scraptown | Visited Bundlers 14508 | -9/Scraptown | Visited TADAMA 14954 | -9/Scraptown | Warned about trapping Scraptown 15599 | -9/Scraptown | Found Unknown Processor 15689 | -9/Scraptown | Discovered new exit (range 5) 15704 | -9/Scraptown | System corruption cleaned by C-Scrubber 15749 | -9/Scraptown | Found Scrap Suit 16915 | -9/Scraptown | Found Scrapoid Pod 17181 | -9/Scraptown | Scrapoid Pod released 09S06-D (x5) 21145 | -9/Scraptown | Visited Assassins FH 21853 | -9/Scraptown | Entered Factory 21853 | -6/Factory | Accompanied by 6 allies 21853 | -6/Factory | Evolved 8 slots: Power x1, Propulsion x2, Utility x4, Weapon x1 21854 | -6/Factory | Identified exit to Factory 21854 | -6/Factory | Identified exit to Extension 21855 | -6/Factory | Loaded intel: 84 trap records 22162 | -6/Factory | Build established: Scavenger-Tank 23105 | -6/Factory | Entered Extension 23105 | -6/Extension | Accompanied by 3 allies 23405 | -6/Extension | Rescued a captive Derelict 23526 | -6/Extension | Rescued A7 23561 | -6/Extension | Build established: Scavenger-Scrapper 24030 | -6/Extension | Spotted B-75 Beast 24032 | -6/Extension | Destroyed B-75 Beast 24050 | -6/Extension | Spotted B-75 Beast 24060 | -6/Extension | Destroyed B-75 Beast 24103 | -6/Extension | Build established: Commander-Scrapper 24644 | -6/Extension | Rescued a captive Derelict 24646 | -6/Extension | Rescued a captive Derelict 24672 | -6/Extension | Discovered exit to Factory (range 10) 24673 | -6/Extension | Discovered new exit (range 6) 24698 | -6/Extension | Disrupted transfer network 24730 | -6/Extension | Lost 3 allies 24781 | -6/Extension | Entered Cetus 24781 | -6/Cetus | Accompanied by 26 allies (A7) 24786 | -6/Cetus | Acquired a Cetus Manufacturing Module code from A7 24822 | -6/Cetus | Spotted Cetus Guard 24822 | -6/Cetus | Spotted Cetus Guard 24826 | -6/Cetus | Spotted Cetus Guard 24826 | -6/Cetus | Spotted Cetus Guard 24839 | -6/Cetus | Allies destroyed Cetus Guard 24844 | -6/Cetus | Allies destroyed Cetus Guard 24848 | -6/Cetus | Allies destroyed Cetus Guard 24850 | -6/Cetus | Allies destroyed Cetus Guard 24879 | -6/Cetus | Lost 6 allies 25074 | -6/Cetus | Started Cetus Manufacturing Module 25086 | -6/Cetus | Escorted A7 to Cetus Mainframe 25099 | -6/Cetus | Manufactured an Enhanced Grunt 25124 | -6/Cetus | Manufactured an Enhanced Grunt 25149 | -6/Cetus | Manufactured an Enhanced Grunt 25174 | -6/Cetus | Manufactured an Enhanced Grunt 25199 | -6/Cetus | Manufactured an Enhanced Grunt 25251 | -6/Cetus | Discovered new exit (range 15) 25328 | -6/Cetus | Spotted Cetus Guard 25329 | -6/Cetus | Spotted Cetus Guard 25331 | -6/Cetus | Spotted Cetus Guard 25332 | -6/Cetus | Spotted Cetus Guard 25350 | -6/Cetus | Allies destroyed Cetus Guard 25350 | -6/Cetus | Allies destroyed Cetus Guard 25354 | -6/Cetus | Allies destroyed Cetus Guard 25355 | -6/Cetus | Allies destroyed Cetus Guard 25366 | -6/Cetus | Discovered exit to Factory (range 15) 25381 | -6/Cetus | Lost 3 allies 25388 | -6/Cetus | Met Revision 17 25531 | -6/Cetus | Security sweep announced 25540 | -6/Cetus | Murdered A7 25543 | -6/Cetus | Extracted ID and sensor layout for unrecognized location from A7's data core 25839 | -6/Cetus | Entered Archives 25839 | -6/Archives | Accompanied by 19 allies 25976 | -6/Archives | Discovered exit to Factory (range 14) 25990 | -6/Archives | Lost 4 allies 26000 | -6/Archives | Discovered new exit (range 16) 26010 | -6/Archives | Found Prototype Device 26010 | -6/Archives | Identified Exp. Thermal Shield 26056 | -6/Archives | Discovered new exit (range 16) 26925 | -6/Archives | Entered Hub_04(d) 26925 | -6/Hub_04(d) | Accompanied by 15 allies 27148 | -6/Hub_04(d) | Lost 4 allies 27172 | -6/Hub_04(d) | Network Hub disabled 27420 | -6/Hub_04(d) | Build established: Scavenger-Scrapper 27509 | -6/Hub_04(d) | Spotted Lightning 27510 | -6/Hub_04(d) | Spotted Lightning 27529 | -6/Hub_04(d) | Spotted Lightning 27541 | -6/Hub_04(d) | Entered Factory 27541 | -5/Factory | Evolved 2 slots: Utility x2 27566 | -5/Factory | Lost 4 allies 27838 | -5/Factory | Build established: Scavenger-Tank 27921 | -5/Factory | Discovered new exit (range 23) 27940 | -5/Factory | Identified exit to Upper Caves 28046 | -5/Factory | Repaired Quantum Reactor 28416 | -5/Factory | Scrapoids reinforcements arrived? 28563 | -5/Factory | Entered Upper Caves 28563 | -5/Upper Caves | Accompanied by 4 allies 28565 | -5/Upper Caves | UFD Scientist delivered a prototype 28565 | -5/Upper Caves | Attracted the attention of an 0b10 checkpoint 28608 | -5/Upper Caves | Found Prototype Protection 28608 | -5/Upper Caves | Identified Enh. Scrap Shield 28756 | -5/Upper Caves | Encountered a Warlord checkpoint 29296 | -5/Upper Caves | Discovered new exit (range 9) 29325 | -5/Upper Caves | Found Corrupted Scrap Suit 29353 | -5/Upper Caves | Entered another Upper Caves area 29353 | -5/Upper Caves | Accompanied by 2 allies 29373 | -5/Upper Caves | Found Scrap Suit 29375 | -5/Upper Caves | Activated DRS Beacon 29560 | -5/Upper Caves | Found Scrap Suit 29605 | -5/Upper Caves | Discovered new exit (range 7) 29902 | -5/Upper Caves | Attracted the attention of an 0b10 checkpoint 30030 | -5/Upper Caves | Discovered new exit (range 12) 30214 | -5/Upper Caves | Entered Zhirov 30216 | -5/Zhirov | Discovered new exit (range 3) 30268 | -5/Zhirov | Met Zhirov 30293 | -5/Zhirov | Learned location of Quarantine (-3) 30293 | -5/Zhirov | Learned location of Testing (-2) 30293 | -5/Zhirov | Learned location of Command (-1) 30304 | -5/Zhirov | Zhirov requested help retrieving the SGEMP Prototype 30325 | -5/Zhirov | Found Alien Artifact 30325 | -5/Zhirov | Identified Integrated Dissipator 30325 | -5/Zhirov | Installed Integrated Dissipator, increased core heat dissipation (+20) 30341 | -5/Zhirov | Found Alien Artifact 30491 | -5/Zhirov | Entered Proximity Caves 30493 | -4/Proximity Caves | Spotter reported a threat 30494 | -4/Proximity Caves | Spotter reported a threat 30784 | -4/Proximity Caves | Build established: Scavenger-Scrapper 30960 | -4/Proximity Caves | Learned Research stockpile data 31019 | -4/Proximity Caves | Discovered new exit (range 17) 31054 | -4/Proximity Caves | Spotted B-86 Titan 31074 | -4/Proximity Caves | System corruption reached 10% 31077 | -4/Proximity Caves | Entered Factory 31077 | -4/Factory | Evolved 2 slots: Propulsion x1, Utility x1 31167 | -4/Factory | Spotted B-86 Titan 31375 | -4/Factory | Build established: Scavenger-Tank 31572 | -4/Factory | Discovered new exit (range 15) 32245 | -4/Factory | Destroyed 7 combat bots 32322 | -4/Factory | Identified exit to Upper Caves 32462 | -4/Factory | Cargo convoy interrupted 32469 | -4/Factory | Spotted Striker 32484 | -4/Factory | Spotted Executioner 32513 | -4/Factory | Entered Upper Caves 32520 | -4/Upper Caves | Learned Research security intel 32529 | -4/Upper Caves | Lost 5 parts (1p1n1u2w) 32571 | -4/Upper Caves | Entered a destroyed Warlord outpost 32753 | -4/Upper Caves | Attracted the attention of an 0b10 outpost 32874 | -4/Upper Caves | Discovered new exit (range 16) 32893 | -4/Upper Caves | Identified exit to Upper Caves 32917 | -4/Upper Caves | Entered another Upper Caves area 32934 | -4/Upper Caves | Attracted the attention of an 0b10 outpost 33075 | -4/Upper Caves | Encountered a Warlord checkpoint 33613 | -4/Upper Caves | Discovered new exit (range 2) 33613 | -4/Upper Caves | Identified exit to Warlord 33622 | -4/Upper Caves | Entered Warlord 33670 | -4/Warlord | System corruption cleaned by Quarantine Array 33980 | -4/Warlord | Visited the Vortex Lab 33993 | -4/Warlord | Found Prototype Energy Cannon 33993 | -4/Warlord | Identified Vortex Cannon 33994 | -4/Warlord | Warlord's base attacked by MAIN.C 33996 | -4/Warlord | Found Vortex Cannon 34163 | -4/Warlord | Found Prototype Reactor 34177 | -4/Warlord | Found Prototype Device 34177 | -4/Warlord | Identified System Purifier 34344 | -4/Warlord | Warlord forces counterattacked 34667 | -4/Warlord | Lost 3 allies 34669 | -4/Warlord | Warlord base infiltrated, sounded retreat 34699 | -4/Warlord | Rebuked by Warlord 34737 | -4/Warlord | Spotted Striker 34755 | -4/Warlord | Spotted Striker 34804 | -4/Warlord | Lost 5 allies 34813 | -4/Warlord | Spotted Executioner 34823 | -4/Warlord | Discovered new exit (range 14) 34840 | -4/Warlord | Identified exit to Proximity Caves 34846 | -4/Warlord | Lost 3 allies 34861 | -4/Warlord | Entered Proximity Caves 35051 | -3/Proximity Caves | Discovered new exit (range 20) 35074 | -3/Proximity Caves | Identified exit to Research 35080 | -3/Proximity Caves | Entered Research 35080 | -3/Research | Evolved 2 slots: Propulsion x1, Utility x1 35280 | -3/Research | Revision forces began assault on 0b10 35321 | -3/Research | Scrapoid reinforcements arrived 35338 | -3/Research | Met up with Revision 17++ 35396 | -3/Research | Identified exit to Armory 35396 | -3/Research | Identified exit to Quarantine 35441 | -3/Research | Spotted B-86 Titan 35464 | -3/Research | Allies destroyed B-86 Titan 35475 | -3/Research | Found Scrap Suit 35505 | -3/Research | Found Prototype Processor 35505 | -3/Research | Identified Exp. Signal Interpreter 35657 | -3/Research | Fabricated Lgt. Quantum Reactor (x2) 35780 | -3/Research | Research terminal network offline 37499 | -3/Research | Entered Quarantine 37499 | -3/Quarantine | Accompanied by 3 allies 37984 | -3/Quarantine | Discovered new exit (range 15) 38034 | -3/Quarantine | Found Alien Artifact 38034 | -3/Quarantine | Identified Core Reset Matrix 38034 | -3/Quarantine | Identified Surveybot 24 Chip 38034 | -3/Quarantine | Identified Transdimensional Reconstructor 38034 | -3/Quarantine | Used Core Reset Matrix 38038 | -3/Quarantine | Detected hypermatrix surge 38038 | -3/Quarantine | Sensed 8 artifacts in vicinity 38041 | -3/Quarantine | Discovered new exit (range 8) 38061 | -3/Quarantine | Identified exit to Research 38234 | -3/Quarantine | Cryocooling Duct disabled 38249 | -3/Quarantine | Ambient heat levels rising (+20) 38249 | -3/Quarantine | Non-combat units ordered to evacuate 38267 | -3/Quarantine | Build established: Scavenger-Scrapper 38371 | -3/Quarantine | Found Subatomic Replicator 38476 | -3/Quarantine | Spotted Fortress 38573 | -3/Quarantine | Discovered new exit (range 5) 38573 | -3/Quarantine | Discovered new exit (range 6) 38577 | -3/Quarantine | Identified exit to Section 7 38671 | -3/Quarantine | Entered Section 7 38672 | -3/Section 7 | Detected hypermatrix surge 38672 | -3/Section 7 | Sensed 23 artifacts in vicinity 38742 | -3/Section 7 | Found Integrated Mediator 38742 | -3/Section 7 | Installed Integrated Mediator, increased core attachment efficiency 38808 | -3/Section 7 | Discovered exit to Research (range 24) 38930 | -3/Section 7 | Found Integrated Dissipator 38930 | -3/Section 7 | Installed Integrated Dissipator, increased core heat dissipation (+20) 39116 | -3/Section 7 | Entered Research 39116 | -2/Research | Evolved 2 slots: Power x1, Utility x1 39491 | -2/Research | Identified Vortex Chain Reactor 39756 | -2/Research | Discovered new exit (range 23) 39781 | -2/Research | Build established: Alien-Skirmisher 39894 | -2/Research | Discovered new exit (range 21) 40053 | -2/Research | Identified exit to Testing 40054 | -2/Research | Entered Testing 40075 | -2/Testing | Found Portable AFG 40292 | -2/Testing | Discovered new exit (range 20) 40326 | -2/Testing | Found Prototype Energy Gun 40327 | -2/Testing | Identified Warp Gun 40399 | -2/Testing | Found Prototype Energy Cannon 40399 | -2/Testing | Identified Potential Cannon 40738 | -2/Testing | Found Prototype Energy Cannon 40738 | -2/Testing | Identified Hpw. Disruptor Cannon 40928 | -2/Testing | System corruption reached 10% 40951 | -2/Testing | Warped through subspace 41133 | -2/Testing | Identified exit to Access 41134 | -2/Testing | Entered Access 41134 | -1/Access | Evolved 2 slots: Power x1, Weapon x1 41407 | -1/Access | Discovered new exit (range 24) 41442 | -1/Access | Build established: Generator-Skirmisher 41769 | -1/Access | Used Subatomic Replicator to replicate Potential Cannon 41920 | -1/Access | Released all parts (17) 41921 | *** | Heading to fleet! Last Messages --------------- 41917_ Destroyed Unknown Wheel. 41918_ YCELCGGJNVYBLGTGBXT9CBN7#B6AUANJLXGI6H54 41918_ Activated siege mode. 41919_ R-10 Processor destroyed. 41919_ W-44 Eye distress signal jammed. 41920_ Released Potential Cannon. 41920_ Released Lyr. Heavy Armor Plating. 41920_ Released Imp. Heavy Treads. 41920_ Released Vortex Chain Reactor. 41920_ Released Adv. Targeting Computer. 41920_ Released Huge Storage Unit. 41920_ Released Adv. Coolant Injector. 41920_ Released Adv. Heavy Siege Treads. 41920_ Released Quantum Reactor. 41920_ Released Adv. Coolant Injector. 41920_ Released Adv. Weapon Cycler. 41920_ Released Adv. Transmission Jammer. 41920_ Released Lyr. Heavy Armor Plating. 41920_ Released Adv. Force Field. 41920_ Released Vortex Cannon. Map ----- +----------------------------------------------------+ | ??????? ##### ###+#############????????? | | ?????? ##### ##############???????? | | ?? # " + ?????? | | ?" # """ ######## ????? | | # """ ######## ???? | | # " ######## ??? | | #######/############# ################ ??? | | ##### ############ # " ####### #? | | "" # """ ####### # | | T" + """ ####### # | | ###+##+### ###+########+## " ####### ## | | ## ## # ####### ## | | ## ## # ####### ## | | ## ## # ####### # | | ## ## # ####### # | | ## ## # ####### # | | ## ## ################ # | | ## ############################### # | | ## "############################## # | | ########## " #"###"####################### # | | ## """ """" ### # | | # "" """" ### # | | # " """"" """" ### ## | | # "!!" " """" | | # ; "!*" "" " """" | | ### !==!]*@" " """" | | ### =][*!!= " """" | | ### !!!!*!&"""" """" #### #### | | ### !!!!]=!]! """" #### # | | ########### ![%[![]!] """" #### # | | ########### ##; ==######################## # | | ## ## !=######################## # | | ## ### ######################### # | | ## ################### # + | | ## ################### # # | | ## ################### # # | | ########### ####"######### # # # | | =|= %= # """""# #### | | != [=! " + """""# #### | | ###"#######"###########+### # """""# #### | | " ##### ## ### ## """""# #### | | " ##### ## ### ## """""# ###? | | ##### ## ### ## """""# ##?? | | =#####= ## ### ## # ##?? | | ##### ## ### ## # ???? | | ##### ## ### ##+############ ???? | | ##### ## ### #########????? | | " ##### ## ###+######+########?????? | | " ################ # + ??????? | | " ################ # # ????????? | +----------------------------------------------------+ Best States ------------- Heat Dissipation 94 Coolant Potential 200 Energy Generation 95 Energy Capacity 1200 Matter Stores 300 Matter Capacity 300 Sight Range 22 Robot Scan Range 16 Terrain Scan Range 24 Terrain Scan Density 2010 Jamming Range 16 Armor Coverage 2400 Resistance: TH 30 Utility Shielding 66 Weapon Shielding 90 Point Defense Rating 240 Weapon Cycling 25 Evasion (%) 40 Targeting Accuracy 16 Target Analysis 6 Recoil Reduction 6 Kinecelleration 40 Salvage Targeting 4 Offensive Hacking 24 Defensive Hacking 12 Item Schematics ----------------- Ovr. Railgun | -2/Research | Scanalyzed Robot Schematics ------------------ None Fabricated ------------ Lgt. Quantum Reactor | x2 | -3/Research | Preloaded Repaired ---------- Quantum Reactor | 18% | -5/Factory Alien Tech Used ----------------- Integrated Dissipator Core Reset Matrix Integrated Mediator Transdimensional Reconstructor Subatomic Replicator Achievements -------------- Max Potential Challenges ------------ None Game ------ Seed MultinovaInterceptLance Manual? 0 Play Time 03:49:40 Cumulative 184.6 hours Start 2025.08.25 @ 14:46:16 End 2025.08.27 @ 12:49:11 Sessions 29 Manual Loads 0 Difficulty Rogue Special Mode None Game No. 101 Rogue 101 Adventurer 0 Explorer 0 Win Type 2 Total 20 Types 9/1/6/1/0/1/1/1/0/0 Lore% 70 Gallery% 64 Achievement% 71 Wizard Run 0 Options --------- Layout 1 ASCII 0 Keyboard 0 Movement Arrows Keybinds 0 Fullscreen 2 Font 24/Tamsyn Map View 50x35 Zoom Use 0% Tactical HUD 1 Map Filters NONE Filters NONE Steam 1 RUN: 6f24a4b6-f826-4a9b-b9ee-654e77b5e90b